[Event "Titled Tuesday Blitz January 03 Late 2023"]
[White "Aradhya, Garg"]
[Black "Rengifo Blancas, Renzo Jhonathan"]
[WhiteFideId "25006746"]
[BlackFideId "3807185"]
[WhiteElo "2284"]
[BlackElo "2131"]
[Result "1-0"]
[Round "01"]
[TimeControl "180+2"]
[Date "2023.01.03"]
[WhiteClock "0:00:33"]
[BlackClock "0:00:14"]

1. d4 {[%clk 0:03:00]}  d5 {[%clk 0:02:58]} 2. c4 {[%clk 0:03:01]}  c6 {[%clk 0:02:58]} 3. Nf3 {[%clk 0:03:00]}  Nf6 {[%clk 0:02:58]} 4. e3 {[%clk 0:02:58]}  Bg4 {[%clk 0:02:57]} 5. Nc3 {[%clk 0:02:56]}  g6 {[%clk 0:02:58]} 6. cxd5 {[%clk 0:02:55]}  cxd5 {[%clk 0:02:57]} 7. Qb3 {[%clk 0:02:55]}  Qb6 {[%clk 0:02:55]} 8. Nxd5 {[%clk 0:02:42]}  Nxd5 {[%clk 0:02:55]} 9. Qxd5 {[%clk 0:02:41]}  Nc6 {[%clk 0:02:20]} 10. Bb5 {[%clk 0:02:25]}  e6 {[%clk 0:02:17]} 11. Bxc6+ {[%clk 0:02:05]}  bxc6 {[%clk 0:02:16]} 12. Qb3 {[%clk 0:02:05]}  Bb4+ {[%clk 0:02:11]} 13. Bd2 {[%clk 0:02:04]}  Bxf3 {[%clk 0:02:08]} 14. Qxb4 {[%clk 0:01:57]}  Bxg2 {[%clk 0:02:06]} 15. Rg1 {[%clk 0:01:56]}  Be4 {[%clk 0:02:04]} 16. Rg3 {[%clk 0:01:41]}  Rb8 {[%clk 0:02:03]} 17. Qd6 {[%clk 0:01:31]}  Qxb2 {[%clk 0:01:39]} 18. Rc1 {[%clk 0:01:29]}  Rd8 {[%clk 0:01:39]} 19. Qe5 {[%clk 0:01:28]}  O-O {[%clk 0:01:39]} 20. Qxe4 {[%clk 0:01:28]}  c5 {[%clk 0:01:36]} 21. Rxc5 {[%clk 0:01:26]}  Qxa2 {[%clk 0:01:34]} 22. h4 {[%clk 0:01:23]}  Rd5 {[%clk 0:01:27]} 23. Rxd5 {[%clk 0:01:19]}  exd5 {[%clk 0:01:28]} 24. Qd3 {[%clk 0:01:18]}  Rb8 {[%clk 0:01:28]} 25. h5 {[%clk 0:01:15]}  a5 {[%clk 0:01:28]} 26. hxg6 {[%clk 0:01:14]}  hxg6 {[%clk 0:01:29]} 27. Rxg6+ {[%clk 0:01:04]}  fxg6 {[%clk 0:01:28]} 28. Qxg6+ {[%clk 0:01:04]}  Kh8 {[%clk 0:01:24]} 29. Qh5+ {[%clk 0:01:04]}  Kg8 {[%clk 0:01:24]} 30. Qg4+ {[%clk 0:01:03]}  Kh7 {[%clk 0:01:21]} 31. Qh3+ {[%clk 0:01:03]}  Kg6 {[%clk 0:01:19]} 32. Qg3+ {[%clk 0:01:03]}  Kf5 {[%clk 0:01:20]} 33. Qf4+ {[%clk 0:01:02]}  Ke6 {[%clk 0:01:19]} 34. Qe5+ {[%clk 0:01:02]}  Kf7 {[%clk 0:01:16]} 35. Qxb8 {[%clk 0:01:00]}  a4 {[%clk 0:01:14]} 36. Qc7+ {[%clk 0:00:59]}  Ke6 {[%clk 0:01:14]} 37. Qc6+ {[%clk 0:00:59]}  Kf7 {[%clk 0:01:13]} 38. Qc1 {[%clk 0:00:47]}  Qb3 {[%clk 0:00:50]} 39. Qc7+ {[%clk 0:00:44]}  Ke6 {[%clk 0:00:49]} 40. Qc6+ {[%clk 0:00:44]}  Kf7 {[%clk 0:00:50]} 41. Bc1 {[%clk 0:00:40]}  Qb4+ {[%clk 0:00:37]} 42. Kf1 {[%clk 0:00:39]}  Qb3 {[%clk 0:00:17]} 43. Kg2 {[%clk 0:00:38]}  Kg7 {[%clk 0:00:12]} 44. Qe6 {[%clk 0:00:33]}  a3 {[%clk 0:00:12]} 45. Qe7+ {[%clk 0:00:31]}  Kg6 {[%clk 0:00:12]} 46. Bxa3 {[%clk 0:00:31]}  Qc2 {[%clk 0:00:13]} 47. Bd6 {[%clk 0:00:30]}  Kh5 {[%clk 0:00:12]} 48. Bf4 {[%clk 0:00:29]}  Qg6+ {[%clk 0:00:11]} 49. Qg5+ {[%clk 0:00:29]}  Qxg5+ {[%clk 0:00:10]} 50. Bxg5 {[%clk 0:00:29]}  Kg4 {[%clk 0:00:11]} 51. Bf4 {[%clk 0:00:29]}  Kf5 {[%clk 0:00:12]} 52. Kf3 {[%clk 0:00:29]}  Ke6 {[%clk 0:00:12]} 53. Kg4 {[%clk 0:00:29]}  Kf7 {[%clk 0:00:13]} 54. Kf5 {[%clk 0:00:29]}  Kg8 {[%clk 0:00:13]} 55. Ke5 {[%clk 0:00:30]}  Kh7 {[%clk 0:00:13]} 56. Kxd5 {[%clk 0:00:31]}  Kg6 {[%clk 0:00:13]} 57. Ke6 {[%clk 0:00:31]}  Kh5 {[%clk 0:00:14]} 58. d5 {[%clk 0:00:32]}  Kg4 {[%clk 0:00:14]} 59. d6 {[%clk 0:00:33]} 1-0


[Site "https://www.chess.com"]

[Event "Titled Tuesday Blitz January 03 Late 2023"]
[White "Stachanczyk, Jacek"]
[Black "Nasuta, Grzegorz"]
[WhiteFideId "1116657"]
[BlackFideId "1141686"]
[WhiteElo "2147"]
[BlackElo "2552"]
[Result "1-0"]
[Round "01"]
[TimeControl "180+2"]
[Date "2023.01.03"]
[WhiteClock "0:01:05"]
[BlackClock "0:00:27"]

1. e4 {[%clk 0:02:59]}  c5 {[%clk 0:02:59]} 2. Nf3 {[%clk 0:02:57]}  e6 {[%clk 0:02:59]} 3. d4 {[%clk 0:02:56]}  cxd4 {[%clk 0:03:00]} 4. Nxd4 {[%clk 0:02:56]}  a6 {[%clk 0:03:00]} 5. Nc3 {[%clk 0:02:56]}  b5 {[%clk 0:03:00]} 6. Bd3 {[%clk 0:02:54]}  Bb7 {[%clk 0:03:01]} 7. a3 {[%clk 0:02:40]}  d6 {[%clk 0:03:01]} 8. O-O {[%clk 0:02:40]}  Nd7 {[%clk 0:03:01]} 9. Qe2 {[%clk 0:02:40]}  Ngf6 {[%clk 0:03:01]} 10. Kh1 {[%clk 0:02:38]}  Be7 {[%clk 0:03:00]} 11. Bd2 {[%clk 0:02:38]}  O-O {[%clk 0:02:57]} 12. f4 {[%clk 0:02:38]}  Qc7 {[%clk 0:02:57]} 13. Rae1 {[%clk 0:02:35]}  g6 {[%clk 0:02:30]} 14. Nf3 {[%clk 0:02:11]}  Nc5 {[%clk 0:02:27]} 15. f5 {[%clk 0:01:59]}  Nfd7 {[%clk 0:02:16]} 16. fxe6 {[%clk 0:01:55]}  fxe6 {[%clk 0:02:15]} 17. Bh6 {[%clk 0:01:44]}  Rf7 {[%clk 0:01:56]} 18. Ng5 {[%clk 0:01:37]}  Rxf1+ {[%clk 0:01:52]} 19. Rxf1 {[%clk 0:01:35]}  Ne5 {[%clk 0:01:41]} 20. Qf2 {[%clk 0:01:10]}  Bxg5 {[%clk 0:00:27]} 21. Qf8+ {[%clk 0:01:05]} 1-0


[Site "https://www.chess.com"]

[Event "Titled Tuesday Blitz January 03 Late 2023"]
[White "Rozman, Levy"]
[Black "Vovk, Orest"]
[WhiteFideId "2039877"]
[BlackFideId "14113490"]
[WhiteElo "2322"]
[BlackElo "2315"]
[Result "1-0"]
[Round "01"]
[TimeControl "180+2"]
[Date "2023.01.03"]
[WhiteClock "0:00:18"]
[BlackClock "0:00:01"]

1. d4 {[%clk 0:02:59]}  e5 {[%clk 0:02:52]} 2. dxe5 {[%clk 0:02:56]}  Nc6 {[%clk 0:02:52]} 3. Nf3 {[%clk 0:02:55]}  Qe7 {[%clk 0:02:51]} 4. Nc3 {[%clk 0:02:55]}  Nxe5 {[%clk 0:02:48]} 5. Nxe5 {[%clk 0:02:56]}  Qxe5 {[%clk 0:02:48]} 6. f4 {[%clk 0:02:56]}  Qa5 {[%clk 0:02:48]} 7. e4 {[%clk 0:02:56]}  Nf6 {[%clk 0:02:36]} 8. Bd3 {[%clk 0:02:39]}  Bc5 {[%clk 0:02:22]} 9. Bd2 {[%clk 0:02:26]}  Qb6 {[%clk 0:02:09]} 10. Na4 {[%clk 0:02:10]}  Bf2+ {[%clk 0:02:02]} 11. Ke2 {[%clk 0:02:10]}  Qc6 {[%clk 0:02:02]} 12. Kxf2 {[%clk 0:02:06]}  Qxa4 {[%clk 0:02:02]} 13. Re1 {[%clk 0:02:03]}  d6 {[%clk 0:01:42]} 14. Bc3 {[%clk 0:01:58]}  Ng4+ {[%clk 0:01:28]} 15. Kg1 {[%clk 0:01:56]}  O-O {[%clk 0:01:28]} 16. h3 {[%clk 0:01:49]}  Nh6 {[%clk 0:01:26]} 17. Re3 {[%clk 0:01:43]}  f6 {[%clk 0:00:55]} 18. Rg3 {[%clk 0:01:37]}  Qe8 {[%clk 0:00:51]} 19. Qf3 {[%clk 0:01:30]}  Bd7 {[%clk 0:00:47]} 20. Re1 {[%clk 0:01:28]}  Bb5 {[%clk 0:00:42]} 21. Qf1 {[%clk 0:01:21]}  Bxd3 {[%clk 0:00:42]} 22. Qxd3 {[%clk 0:01:20]}  Qc6 {[%clk 0:00:36]} 23. Rge3 {[%clk 0:01:14]}  Rae8 {[%clk 0:00:36]} 24. b3 {[%clk 0:01:09]}  Re7 {[%clk 0:00:34]} 25. e5 {[%clk 0:01:07]}  fxe5 {[%clk 0:00:33]} 26. fxe5 {[%clk 0:01:06]}  dxe5 {[%clk 0:00:32]} 27. Bxe5 {[%clk 0:01:03]}  Nf5 {[%clk 0:00:25]} 28. Rf3 {[%clk 0:00:55]}  Qg6 {[%clk 0:00:25]} 29. g4 {[%clk 0:00:42]}  Nd6 {[%clk 0:00:08]} 30. Qd5+ {[%clk 0:00:37]}  Rff7 {[%clk 0:00:03]} 31. Ref1 {[%clk 0:00:32]}  Qe6 {[%clk 0:00:01]} 32. Rxf7 {[%clk 0:00:18]} 1-0


[Site "https://www.chess.com"]

[Event "Titled Tuesday Blitz January 03 Late 2023"]
[White "Sreyas Payyappat"]
[Black "Chen, Justin"]
[WhiteFideId "46674969"]
[BlackFideId "2098199"]
[WhiteElo "2076"]
[BlackElo "2333"]
[Result "1/2-1/2"]
[Round "01"]
[TimeControl "180+2"]
[Date "2023.01.03"]
[WhiteClock "0:00:38"]
[BlackClock "0:00:03"]

1. e4 {[%clk 0:02:58]}  g6 {[%clk 0:02:55]} 2. d4 {[%clk 0:02:57]}  Bg7 {[%clk 0:02:52]} 3. Nc3 {[%clk 0:02:57]}  c6 {[%clk 0:02:51]} 4. Nf3 {[%clk 0:02:58]}  d5 {[%clk 0:02:51]} 5. e5 {[%clk 0:02:58]}  Bg4 {[%clk 0:02:49]} 6. Be2 {[%clk 0:02:58]}  e6 {[%clk 0:02:47]} 7. O-O {[%clk 0:02:57]}  Ne7 {[%clk 0:02:47]} 8. Bg5 {[%clk 0:02:54]}  Nd7 {[%clk 0:02:47]} 9. Qd2 {[%clk 0:02:54]}  h6 {[%clk 0:02:46]} 10. Be3 {[%clk 0:02:52]}  Nf5 {[%clk 0:02:45]} 11. Bf4 {[%clk 0:02:51]}  a6 {[%clk 0:02:43]} 12. h3 {[%clk 0:02:51]}  Bxf3 {[%clk 0:02:44]} 13. Bxf3 {[%clk 0:02:51]}  c5 {[%clk 0:02:41]} 14. dxc5 {[%clk 0:02:48]}  Nxe5 {[%clk 0:02:33]} 15. Bxe5 {[%clk 0:02:47]}  Bxe5 {[%clk 0:02:34]} 16. Rfe1 {[%clk 0:02:41]}  Bxc3 {[%clk 0:02:12]} 17. Qxc3 {[%clk 0:02:41]}  O-O {[%clk 0:02:13]} 18. g4 {[%clk 0:02:38]}  Nh4 {[%clk 0:02:06]} 19. Bh1 {[%clk 0:02:37]}  Rc8 {[%clk 0:02:05]} 20. Qe3 {[%clk 0:02:36]}  g5 {[%clk 0:02:00]} 21. f4 {[%clk 0:02:35]}  Ng6 {[%clk 0:01:54]} 22. fxg5 {[%clk 0:02:34]}  hxg5 {[%clk 0:01:48]} 23. c3 {[%clk 0:02:33]}  Qc7 {[%clk 0:01:32]} 24. b4 {[%clk 0:02:29]}  Qf4 {[%clk 0:01:31]} 25. Bg2 {[%clk 0:02:22]}  Kg7 {[%clk 0:01:22]} 26. Qd4+ {[%clk 0:02:19]}  Kg8 {[%clk 0:00:54]} 27. Re2 {[%clk 0:02:13]}  Qg3 {[%clk 0:00:46]} 28. Re3 {[%clk 0:02:08]}  Qc7 {[%clk 0:00:43]} 29. Rf1 {[%clk 0:02:07]}  Rcd8 {[%clk 0:00:25]} 30. Qf6 {[%clk 0:01:56]}  Qe7 {[%clk 0:00:25]} 31. Qf2 {[%clk 0:01:52]}  Kg7 {[%clk 0:00:17]} 32. Re2 {[%clk 0:01:49]}  Nf4 {[%clk 0:00:16]} 33. Qd4+ {[%clk 0:01:48]}  Qf6 {[%clk 0:00:16]} 34. Re5 {[%clk 0:01:46]}  Kg6 {[%clk 0:00:09]} 35. h4 {[%clk 0:01:45]}  Ne2+ {[%clk 0:00:02]} 36. Rxe2 {[%clk 0:01:44]}  Qxd4+ {[%clk 0:00:02]} 37. cxd4 {[%clk 0:01:45]}  gxh4 {[%clk 0:00:03]} 38. Re5 {[%clk 0:01:44]}  Rh8 {[%clk 0:00:02]} 39. Bh3 {[%clk 0:01:41]}  Rdg8 {[%clk 0:00:01]} 40. g5 {[%clk 0:01:40]}  Rf8 {[%clk 0:00:01]} 41. Rf6+ {[%clk 0:01:40]}  Kg7 {[%clk 0:00:02]} 42. Re3 {[%clk 0:01:39]}  Rh5 {[%clk 0:00:02]} 43. Re5 {[%clk 0:01:39]}  Rxg5+ {[%clk 0:00:01]} 44. Rxg5+ {[%clk 0:01:38]}  Kxf6 {[%clk 0:00:02]} 45. Rg4 {[%clk 0:01:39]}  Rh8 {[%clk 0:00:02]} 46. Kf2 {[%clk 0:01:39]}  Ke7 {[%clk 0:00:02]} 47. Kf3 {[%clk 0:01:40]}  b6 {[%clk 0:00:02]} 48. Kf4 {[%clk 0:01:40]}  bxc5 {[%clk 0:00:02]} 49. bxc5 {[%clk 0:01:40]}  Rb8 {[%clk 0:00:03]} 50. Rg2 {[%clk 0:01:39]}  Rb4 {[%clk 0:00:03]} 51. Rd2 {[%clk 0:01:39]}  Ra4 {[%clk 0:00:03]} 52. Kg5 {[%clk 0:01:39]}  Ra3 {[%clk 0:00:01]} 53. Kxh4 {[%clk 0:01:39]}  f6 {[%clk 0:00:01]} 54. Bg2 {[%clk 0:01:38]}  Ra4 {[%clk 0:00:02]} 55. Kg3 {[%clk 0:01:38]}  Kd7 {[%clk 0:00:02]} 56. Kf2 {[%clk 0:01:36]}  Kc6 {[%clk 0:00:02]} 57. Ke3 {[%clk 0:01:36]}  Ra3+ {[%clk 0:00:02]} 58. Ke2 {[%clk 0:01:35]}  Ra4 {[%clk 0:00:03]} 59. Bf1 {[%clk 0:01:35]}  e5 {[%clk 0:00:02]} 60. dxe5 {[%clk 0:01:32]}  fxe5 {[%clk 0:00:03]} 61. Bg2 {[%clk 0:01:32]}  e4 {[%clk 0:00:04]} 62. Rc2 {[%clk 0:01:31]}  Ra3 {[%clk 0:00:02]} 63. Bh1 {[%clk 0:01:29]}  Rh3 {[%clk 0:00:03]} 64. Bg2 {[%clk 0:01:29]}  Rg3 {[%clk 0:00:03]} 65. Kf2 {[%clk 0:01:29]}  Ra3 {[%clk 0:00:03]} 66. Bf1 {[%clk 0:01:27]}  Ra5 {[%clk 0:00:03]} 67. Ke3 {[%clk 0:01:27]}  Ra3+ {[%clk 0:00:03]} 68. Kd4 {[%clk 0:01:27]}  Ra4+ {[%clk 0:00:03]} 69. Ke5 {[%clk 0:01:27]}  e3 {[%clk 0:00:03]} 70. Be2 {[%clk 0:01:27]}  Re4+ {[%clk 0:00:02]} 71. Kf5 {[%clk 0:01:27]}  Re7 {[%clk 0:00:01]} 72. Kf4 {[%clk 0:01:26]}  d4 {[%clk 0:00:02]} 73. Bf3+ {[%clk 0:01:26]}  Kc7 {[%clk 0:00:01]} 74. Be4 {[%clk 0:01:26]}  d3 {[%clk 0:00:01]} 75. Bxd3 {[%clk 0:01:26]}  Kc6 {[%clk 0:00:02]} 76. Bxa6 {[%clk 0:01:26]}  e2 {[%clk 0:00:02]} 77. Bxe2 {[%clk 0:01:26]}  Rf7+ {[%clk 0:00:02]} 78. Ke3 {[%clk 0:01:26]}  Re7+ {[%clk 0:00:02]} 79. Kf2 {[%clk 0:01:26]}  Rf7+ {[%clk 0:00:03]} 80. Bf3+ {[%clk 0:01:27]}  Kc7 {[%clk 0:00:03]} 81. c6 {[%clk 0:01:28]}  Rf6 {[%clk 0:00:03]} 82. Rb2 {[%clk 0:01:28]}  Rf4 {[%clk 0:00:03]} 83. Rb7+ {[%clk 0:01:29]}  Kc8 {[%clk 0:00:03]} 84. Rh7 {[%clk 0:01:29]}  Rc4 {[%clk 0:00:01]} 85. Ke3 {[%clk 0:01:28]}  Rc3+ {[%clk 0:00:02]} 86. Ke2 {[%clk 0:01:27]}  Rc4 {[%clk 0:00:02]} 87. a4 {[%clk 0:01:28]}  Rxa4 {[%clk 0:00:02]} 88. c7 {[%clk 0:01:28]}  Rc4 {[%clk 0:00:03]} 89. Kd3 {[%clk 0:01:19]}  Rxc7 {[%clk 0:00:03]} 90. Rh8+ {[%clk 0:01:20]}  Kd7 {[%clk 0:00:03]} 91. Kd4 {[%clk 0:01:20]}  Rc2 {[%clk 0:00:02]} 92. Bd5 {[%clk 0:01:21]}  Rd2+ {[%clk 0:00:02]} 93. Ke5 {[%clk 0:01:22]}  Re2+ {[%clk 0:00:02]} 94. Be4 {[%clk 0:01:23]}  Kc7 {[%clk 0:00:03]} 95. Rh7+ {[%clk 0:01:23]}  Kb6 {[%clk 0:00:03]} 96. Rb7+ {[%clk 0:01:24]}  Kc5 {[%clk 0:00:04]} 97. Rc7+ {[%clk 0:01:23]}  Kb4 {[%clk 0:00:04]} 98. Kd4 {[%clk 0:01:23]}  Kb5 {[%clk 0:00:04]} 99. Bd3+ {[%clk 0:01:22]}  Kb6 {[%clk 0:00:05]} 100. Rc8 {[%clk 0:01:19]}  Rh2 {[%clk 0:00:05]} 101. Be4 {[%clk 0:01:18]}  Rd2+ {[%clk 0:00:03]} 102. Ke3 {[%clk 0:01:17]}  Rd1 {[%clk 0:00:03]} 103. Rb8+ {[%clk 0:01:16]}  Kc7 {[%clk 0:00:04]} 104. Rb3 {[%clk 0:01:15]}  Rd6 {[%clk 0:00:03]} 105. Kf4 {[%clk 0:01:15]}  Kd7 {[%clk 0:00:03]} 106. Ke5 {[%clk 0:01:14]}  Re6+ {[%clk 0:00:03]} 107. Kd4 {[%clk 0:01:13]}  Rd6+ {[%clk 0:00:03]} 108. Bd5 {[%clk 0:01:14]}  Kd8 {[%clk 0:00:02]} 109. Rb7 {[%clk 0:01:15]}  Rd7 {[%clk 0:00:02]} 110. Rb8+ {[%clk 0:01:14]}  Kc7 {[%clk 0:00:02]} 111. Rh8 {[%clk 0:01:14]}  Kd6 {[%clk 0:00:03]} 112. Rh6+ {[%clk 0:01:13]}  Kc7 {[%clk 0:00:03]} 113. Kc5 {[%clk 0:01:13]}  Kd8 {[%clk 0:00:02]} 114. Rh8+ {[%clk 0:01:12]}  Kc7 {[%clk 0:00:02]} 115. Ra8 {[%clk 0:01:08]}  Re7 {[%clk 0:00:03]} 116. Ra4 {[%clk 0:01:03]}  Rd7 {[%clk 0:00:01]} 117. Rb4 {[%clk 0:00:59]}  Kd8 {[%clk 0:00:01]} 118. Re4 {[%clk 0:00:56]}  Kc7 {[%clk 0:00:01]} 119. Re8 {[%clk 0:00:55]}  Rd6 {[%clk 0:00:01]} 120. Be6 {[%clk 0:00:51]}  Rc6+ {[%clk 0:00:02]} 121. Kd5 {[%clk 0:00:52]}  Rd6+ {[%clk 0:00:03]} 122. Ke5 {[%clk 0:00:52]}  Rd2 {[%clk 0:00:03]} 123. Rc8+ {[%clk 0:00:52]}  Kb7 {[%clk 0:00:04]} 124. Rc3 {[%clk 0:00:52]}  Rb2 {[%clk 0:00:04]} 125. Bd5+ {[%clk 0:00:52]}  Kb6 {[%clk 0:00:05]} 126. Kd6 {[%clk 0:00:53]}  Rb4 {[%clk 0:00:05]} 127. Rc8 {[%clk 0:00:53]}  Kb5 {[%clk 0:00:04]} 128. Rb8+ {[%clk 0:00:53]}  Ka5 {[%clk 0:00:04]} 129. Ra8+ {[%clk 0:00:52]}  Kb6 {[%clk 0:00:04]} 130. Rb8+ {[%clk 0:00:50]}  Ka5 {[%clk 0:00:05]} 131. Rg8 {[%clk 0:00:48]}  Kb6 {[%clk 0:00:05]} 132. Rg7 {[%clk 0:00:47]}  Ka5 {[%clk 0:00:03]} 133. Kc5 {[%clk 0:00:48]}  Rb5+ {[%clk 0:00:03]} 134. Kd4 {[%clk 0:00:47]}  Kb4 {[%clk 0:00:03]} 135. Rg1 {[%clk 0:00:46]}  Rb6 {[%clk 0:00:03]} 136. Rb1+ {[%clk 0:00:42]}  Ka5 {[%clk 0:00:04]} 137. Bb3 {[%clk 0:00:40]}  Rb4+ {[%clk 0:00:03]} 138. Kc3 {[%clk 0:00:39]}  Rb5 {[%clk 0:00:02]} 139. Rg1 {[%clk 0:00:38]}  Kb6 {[%clk 0:00:03]} 1/2-1/2


[Site "https://www.chess.com"]

[Event "Titled Tuesday Blitz January 03 Late 2023"]
[White "Maksimovic, Bojan"]
[Black "Donskov, Anatoly"]
[WhiteFideId "14408120"]
[BlackFideId "24143413"]
[WhiteElo "2486"]
[BlackElo "2279"]
[Result "1-0"]
[Round "01"]
[TimeControl "180+2"]
[Date "2023.01.03"]
[WhiteClock "0:02:01"]
[BlackClock "0:00:41"]

1. g3 {[%clk 0:03:00]}  d5 {[%clk 0:02:59]} 2. Bg2 {[%clk 0:02:59]}  c5 {[%clk 0:02:57]} 3. Nf3 {[%clk 0:02:56]}  Nf6 {[%clk 0:02:57]} 4. O-O {[%clk 0:02:55]}  Nc6 {[%clk 0:02:57]} 5. c4 {[%clk 0:02:55]}  d4 {[%clk 0:02:57]} 6. e3 {[%clk 0:02:55]}  e6 {[%clk 0:02:56]} 7. exd4 {[%clk 0:02:51]}  cxd4 {[%clk 0:02:56]} 8. d3 {[%clk 0:02:51]}  a5 {[%clk 0:02:54]} 9. Re1 {[%clk 0:02:48]}  Be7 {[%clk 0:02:52]} 10. Na3 {[%clk 0:02:47]}  O-O {[%clk 0:02:51]} 11. Nb5 {[%clk 0:02:47]}  h6 {[%clk 0:02:44]} 12. Bf4 {[%clk 0:02:42]}  Bc5 {[%clk 0:02:44]} 13. Ne5 {[%clk 0:02:25]}  Nxe5 {[%clk 0:02:44]} 14. Bxe5 {[%clk 0:02:26]}  Ra6 {[%clk 0:02:39]} 15. a3 {[%clk 0:02:25]}  a4 {[%clk 0:02:39]} 16. b4 {[%clk 0:02:16]}  axb3 {[%clk 0:02:39]} 17. Qxb3 {[%clk 0:02:17]}  Nd7 {[%clk 0:02:29]} 18. Bc7 {[%clk 0:02:10]}  Qe7 {[%clk 0:02:28]} 19. Qb2 {[%clk 0:02:10]}  e5 {[%clk 0:02:05]} 20. Nxd4 {[%clk 0:02:09]}  Nf6 {[%clk 0:01:38]} 21. Bxe5 {[%clk 0:02:08]}  Qd8 {[%clk 0:01:37]} 22. Nb3 {[%clk 0:02:07]}  Ba7 {[%clk 0:01:35]} 23. d4 {[%clk 0:02:06]}  Ng4 {[%clk 0:01:34]} 24. Bf4 {[%clk 0:02:06]}  Rf6 {[%clk 0:01:31]} 25. h3 {[%clk 0:02:06]}  Nxf2 {[%clk 0:01:25]} 26. Qxf2 {[%clk 0:01:57]}  g5 {[%clk 0:01:25]} 27. Re4 {[%clk 0:01:58]}  gxf4 {[%clk 0:01:22]} 28. Rxf4 {[%clk 0:01:59]}  Rg6 {[%clk 0:01:20]} 29. Rf1 {[%clk 0:01:58]}  Be6 {[%clk 0:01:04]} 30. Nd2 {[%clk 0:01:57]}  Qe7 {[%clk 0:00:48]} 31. Kh2 {[%clk 0:01:57]}  Qxa3 {[%clk 0:00:47]} 32. c5 {[%clk 0:01:48]}  Bb8 {[%clk 0:00:46]} 33. Rf3 {[%clk 0:01:47]}  Qb2 {[%clk 0:00:46]} 34. Ne4 {[%clk 0:01:45]}  Qxf2 {[%clk 0:00:44]} 35. R1xf2 {[%clk 0:01:46]}  Bd5 {[%clk 0:00:44]} 36. Nf6+ {[%clk 0:01:46]}  Rxf6 {[%clk 0:00:41]} 37. Rxf6 {[%clk 0:01:47]}  Bxg2 {[%clk 0:00:40]} 38. Kxg2 {[%clk 0:01:48]}  Kg7 {[%clk 0:00:39]} 39. Rb6 {[%clk 0:01:48]}  Bc7 {[%clk 0:00:32]} 40. Rxb7 {[%clk 0:01:48]}  Bd8 {[%clk 0:00:33]} 41. c6 {[%clk 0:01:48]}  Bf6 {[%clk 0:00:33]} 42. d5 {[%clk 0:01:48]}  Be5 {[%clk 0:00:33]} 43. Rd7 {[%clk 0:01:48]}  Kg6 {[%clk 0:00:33]} 44. c7 {[%clk 0:01:48]}  Rc8 {[%clk 0:00:33]} 45. d6 {[%clk 0:01:49]}  f5 {[%clk 0:00:33]} 46. Rd8 {[%clk 0:01:49]}  Rxc7 {[%clk 0:00:34]} 47. dxc7 {[%clk 0:01:49]}  Bxc7 {[%clk 0:00:35]} 48. Rd7 {[%clk 0:01:50]}  Be5 {[%clk 0:00:35]} 49. Re7 {[%clk 0:01:51]}  Bf6 {[%clk 0:00:35]} 50. Re6 {[%clk 0:01:51]}  Kg5 {[%clk 0:00:35]} 51. Rxf6 {[%clk 0:01:52]}  Kxf6 {[%clk 0:00:36]} 52. Rf4 {[%clk 0:01:53]}  Kg5 {[%clk 0:00:37]} 53. h4+ {[%clk 0:01:54]}  Kh5 {[%clk 0:00:37]} 54. Kf3 {[%clk 0:01:54]}  Kg6 {[%clk 0:00:37]} 55. Ke3 {[%clk 0:01:55]}  Kh5 {[%clk 0:00:38]} 56. Kd4 {[%clk 0:01:56]}  Kg6 {[%clk 0:00:38]} 57. Ke5 {[%clk 0:01:57]}  Kh5 {[%clk 0:00:38]} 58. Rxf5+ {[%clk 0:01:57]}  Kg4 {[%clk 0:00:39]} 59. Rf6 {[%clk 0:01:57]}  h5 {[%clk 0:00:40]} 60. Rg6+ {[%clk 0:01:58]}  Kh3 {[%clk 0:00:40]} 61. Rg5 {[%clk 0:01:59]}  Kg2 {[%clk 0:00:40]} 62. Kf6 {[%clk 0:02:00]}  Kh3 {[%clk 0:00:41]} 63. Kg6 {[%clk 0:02:00]}  Kg2 {[%clk 0:00:41]} 64. Kxh5 {[%clk 0:02:01]} 1-0


[Site "https://www.chess.com"]

[Event "Titled Tuesday Blitz January 03 Late 2023"]
[White "Salimova, Nurgyul"]
[Black "Dinu, Dumitru-Daniel"]
[WhiteFideId "2915138"]
[BlackFideId "1208403"]
[WhiteElo "2391"]
[BlackElo "2203"]
[Result "1-0"]
[Round "01"]
[TimeControl "180+2"]
[Date "2023.01.03"]
[WhiteClock "0:00:17"]
[BlackClock "0:00:05"]

1. d4 {[%clk 0:02:59]}  Nf6 {[%clk 0:02:59]} 2. Nf3 {[%clk 0:02:59]}  e6 {[%clk 0:03:00]} 3. Bg5 {[%clk 0:02:59]}  d5 {[%clk 0:02:56]} 4. e3 {[%clk 0:02:50]}  h6 {[%clk 0:02:56]} 5. Bh4 {[%clk 0:02:49]}  Be7 {[%clk 0:02:56]} 6. Nbd2 {[%clk 0:02:47]}  O-O {[%clk 0:02:55]} 7. Bd3 {[%clk 0:02:46]}  c5 {[%clk 0:02:54]} 8. c3 {[%clk 0:02:45]}  Nc6 {[%clk 0:02:54]} 9. Qe2 {[%clk 0:02:39]}  cxd4 {[%clk 0:02:53]} 10. exd4 {[%clk 0:02:37]}  Nd7 {[%clk 0:02:45]} 11. Bxe7 {[%clk 0:02:34]}  Qxe7 {[%clk 0:02:45]} 12. O-O {[%clk 0:02:22]}  Nf6 {[%clk 0:02:43]} 13. Rfe1 {[%clk 0:02:22]}  Qd6 {[%clk 0:02:42]} 14. Ne5 {[%clk 0:02:18]}  Bd7 {[%clk 0:02:35]} 15. f4 {[%clk 0:02:15]}  Rae8 {[%clk 0:02:33]} 16. Rf1 {[%clk 0:02:12]}  Qc7 {[%clk 0:02:31]} 17. Rae1 {[%clk 0:02:12]}  Ne7 {[%clk 0:02:12]} 18. g4 {[%clk 0:02:05]}  g6 {[%clk 0:01:56]} 19. g5 {[%clk 0:01:19]}  hxg5 {[%clk 0:01:48]} 20. fxg5 {[%clk 0:01:20]}  Nh5 {[%clk 0:01:48]} 21. Ng4 {[%clk 0:01:14]}  Nf5 {[%clk 0:01:41]} 22. Nf3 {[%clk 0:01:13]}  f6 {[%clk 0:01:04]} 23. gxf6 {[%clk 0:01:10]}  Nxf6 {[%clk 0:01:04]} 24. Nxf6+ {[%clk 0:01:07]}  Rxf6 {[%clk 0:01:04]} 25. Ne5 {[%clk 0:01:07]}  Ref8 {[%clk 0:00:50]} 26. Qg4 {[%clk 0:01:06]}  Kg7 {[%clk 0:00:39]} 27. Rf4 {[%clk 0:00:39]}  Nh6 {[%clk 0:00:36]} 28. Qg5 {[%clk 0:00:39]}  Nf5 {[%clk 0:00:21]} 29. Re2 {[%clk 0:00:32]}  Be8 {[%clk 0:00:17]} 30. Ng4 {[%clk 0:00:28]}  R6f7 {[%clk 0:00:15]} 31. Rxe6 {[%clk 0:00:27]}  Re7 {[%clk 0:00:12]} 32. Bxf5 {[%clk 0:00:19]}  Rxf5 {[%clk 0:00:09]} 33. Rxe7+ {[%clk 0:00:17]}  Qxe7 {[%clk 0:00:05]} 34. Qxe7+ {[%clk 0:00:17]}  Bf7 {[%clk 0:00:04]} 35. Rxf5 {[%clk 0:00:17]}  gxf5 {[%clk 0:00:05]} 36. Ne5 {[%clk 0:00:17]}  Kh6 {[%clk 0:00:05]} 37. Qxf7 {[%clk 0:00:17]} 1-0


[Site "https://www.chess.com"]